Cogmind - Beta 14 @@@ ROGUE MODE // 2025.04.30 @ 21:37:31 Player: Zeta Lockhart Result: Destroyed by Y-72 Warden with Railgun Performance ------------- Evolutions (8) 4000 Regions Visited (17) 3400 Robots Destroyed (135) 675 Value Destroyed (4513) 4513 Prototype IDs (27) 540 Alien Tech Used (0) 0 Bonus (561) 561 TOTAL SCORE: 13689 Bonus ------- High Alert Combat Kills 103 Follower Combat Kills 266 Aligned with FarCom 300 Friendly Fire -108 Cogmind --------- Core Integrity 0/1450 Matter 257/300 Energy 11/100 System Corruption 2% Temperature Cool (4) Movement Flying (39) Location -2/Research Parts ------- > --- POWER (2) -------- (None) > --- PROPULSION (7) --- Field Propulsion Array Impulse Thruster Array > --- UTILITY (7) ------ (None) > --- WEAPON (7) ------- (None) > --- INVENTORY (5) ---- Heavy Insulated Plating Peak State ------------ > --- POWER ------------ Light Angular Momentum Engine Neutrino Core > --- PROPULSION ------- Wheel Wheel Wheel Compact Wheel > --- UTILITY ---------- Advanced Heat Sink Advanced Heat Sink Advanced Heat Sink Advanced Coolant Injector High-capacity Storage Unit Layered Light Armor Plating > --- WEAPON ----------- Heavy Laser Gatling Laser Wave Gun Advanced Plasma Cannon Gauss Rifle KE Penetrator Mass Driver > --- INVENTORY -------- Micro Fission Core Advanced Heat Sink Advanced Heat Sink Layered Light Armor Plating Wave Gun Wave Gun Wave Gun Dispersion Rifle High-powered Shotgun Gauss Rifle Heavy Machine Gun Assault Cannon Heavy Flak Cannon Heavy Flak Cannon Smartbomb Launcher [Rating: 86] Favorites ----------- Power Angular Momentum Engine Engine Angular Momentum Engine Power Core Fission Core Reactor Particle Reactor Propulsion Wheel Treads Biometal Medium Treads Leg Carbon-fiber Leg Wheel Wheel Flight Unit Nuclear Pulse Array Utility Advanced Heat Sink Device Advanced Heat Sink Storage High-capacity Storage Unit Processor Targeting Computer Protection Hardened Medium Armor Plating Weapon Gatling Laser Energy Gun Gatling Laser Energy Cannon Advanced Plasma Cannon Ballistic Gun Heavy Machine Gun Ballistic Cannon Assault Cannon Launcher Missile Launcher Build | -11 -10 -9 -9 -9 -8 -8 -8 -7 -6 -6 -6 -5 -4 -4 -3 -3 -2 ------- Run | Yrd Mat Mat Min Exi Min Mat Sto Fac Fac Low Low Fac Fac Upp Res Arm Res Slots Evolved 16 | . . 2 . . . 2 . 2 2 . . 2 2 . 2 . 2 Power 1 | . . . . . . . . . 1 . . . . . . . . Propulsion 5 | . . . . . . . . . 1 . . 1 . . 2 . 1 Utility 5 | . . 1 . . . 1 . 1 . . . . 1 . . . 1 Weapon 5 | . . 1 . . . 1 . 1 . . . 1 1 . . . . Parts Attached 186 | 6 8 14 1 . 7 9 6 15 2 9 . 57 20 . 11 12 9 Power 20 | 1 . 3 1 . . 2 . 2 1 . . 6 2 . 1 . 1 Engine 16 | 1 . 3 1 . . 2 . 2 . . . 4 2 . . . 1 Core 3 | . . . . . . . . . 1 . . 2 . . . . . Reactor 1 | . . . . . . . . . . . . . . . 1 . . Propulsion 42 | 2 2 2 . . 2 3 2 1 . 1 . 9 3 . 3 8 4 Treads 1 | . . . . . . . . . . . . . . . . 1 . Leg 3 | . . . . . . . . . . . . 3 . . . . . Wheel 24 | 2 2 2 . . 2 3 2 1 . 1 . 6 1 . 2 . . Hover . | . . . . . . . . . . . . . . . . . . Flight 14 | . . . . . . . . . . . . . 2 . 1 7 4 Utility 51 | 1 3 3 . . 1 2 1 6 1 2 . 12 7 . 6 2 4 Device 30 | . 2 1 . . 1 1 1 5 . 1 . 7 6 . 4 . 1 Storage 3 | 1 1 . . . . . . . . . . 1 . . . . . Processor 2 | . . . . . . . . . . . . 1 . . 1 . . Hackware . | . . . . . . . . . . . . . . . . . . Protection 16 | . . 2 . . . 1 . 1 1 1 . 3 1 . 1 2 3 Artifact . | . . . . . . . . . . . . . . . . . . Weapon 73 | 2 3 6 . . 4 2 3 6 . 6 . 30 8 . 1 2 . Energy Gun 32 | 1 . 2 . . 2 2 1 4 . 3 . 11 5 . . 1 . Energy Cannon 3 | . . . . . . . . . . . . 2 . . 1 . . Ballistic Gun 21 | 1 2 4 . . 2 . 1 2 . 2 . 6 1 . . . . Ballistic Cannon 10 | . . . . . . . 1 . . 1 . 7 1 . . . . Launcher 7 | . 1 . . . . . . . . . . 4 1 . . 1 . Special Weapon . | . . . . . . . . . . . . . . . . . . Impact Weapon . | . . . . . . . . . . . . . . . . . . Slashing Weapon . | . . . . . . . . . . . . . . . . . . Piercing Weapon . | . . . . . . . . . . . . . . . . . . Special Melee Weapon . | . . . . . . . . . . . . . . . . . . Unidentified Prototypes 4 | . . . . . 1 . . . . . . . . . 3 . . Parts Lost 71 | . 1 2 1 . 5 . 2 1 . 3 . 25 19 . 1 7 4 Power 10 | . . . 1 . . . . . . . . 5 3 . . . 1 Propulsion 20 | . 1 . . . 2 . 1 . . . . 5 3 . 1 6 1 Utility 15 | . . 1 . . 1 . . 1 . 1 . 4 4 . . 1 2 Weapon 26 | . . 1 . . 2 . 1 . . 2 . 11 9 . . . . Highest Loss Streak 13 | . 1 1 1 . 5 . 2 1 . 3 . 10 13 . 1 5 3 To Critical Strikes . | . . . . . . . . . . . . . . . . . . Average Slot Usage (%) 76 | . 97 96 97 100 95 99 98 92 85 85 86 79 66 47 36 15 7 Engine 5 | . 14 11 8 11 11 9 9 7 6 6 6 4 1 . . . . Core 2 | . . . . . . . . . 5 6 6 4 4 . . . . Wheel 10 | . 25 22 22 22 20 18 16 7 6 6 6 8 10 . 2 . . Flight 1 | . . . . . . . . . . . . . 3 10 9 8 3 Device 15 | . 14 10 11 11 16 18 18 23 20 19 20 14 17 21 12 . . Storage 5 | . 14 11 11 11 11 9 9 7 6 6 6 4 2 . . . . Protection 5 | . . 9 11 11 4 8 9 6 6 6 6 4 3 5 5 5 . Energy Gun 13 | . 8 4 11 11 13 26 27 23 20 20 20 10 9 5 2 . 2 Energy Cannon 1 | . . . . . . . . . . . . 3 2 . . . . Ballistic Gun 7 | . 19 26 22 22 19 9 5 7 6 7 13 6 5 . . . . Ballistic Cannon 3 | . . . . . . . 3 7 6 3 . 6 3 5 2 . . Peak Build Rating 86 | 6 7 14 14 15 21 30 30 56 58 60 57 75 86 67 77 65 52 Average Rating 45 | 4 6 10 13 14 17 27 29 51 57 57 57 64 64 67 59 37 17 On Entrance 35 | . 6 7 14 14 15 21 30 30 52 58 57 57 74 67 67 48 14 Naked Turns 172 | . . . . . . . . . . . . 14 36 . . 61 61 Heaviest Build 111 | 12 47 54 56 56 56 68 70 85 94 98 90 103 111 24 25 25 30 Greatest Support 56 | 32 32 32 20 20 32 32 26 28 28 28 28 56 46 26 26 33 31 Greatest Overweight (x) 9 | . 1 2 2 2 2 3 6 3 3 3 3 9 2 . 2 . 1 Average Overweight (x) 1 | . . 1 2 2 1 2 3 2 2 3 3 1 . . . . . Largest Inventory Capacity 20 | 8 20 20 20 20 20 20 20 20 20 20 20 20 20 5 5 5 5 Average Capacity 16 | 7 12 20 20 20 20 20 20 20 20 20 20 19 12 5 5 5 5 Most Carried 20 | 5 8 20 20 20 20 20 20 20 20 20 13 20 19 5 5 5 5 Average Carried 14 | 2 6 16 19 20 18 19 19 19 19 16 13 14 10 5 4 4 4 Final Capacity 20 | 8 20 20 20 20 20 20 20 20 20 20 20 20 5 5 5 5 5 Final Carried 20 | 4 7 20 20 20 17 20 20 20 20 13 13 18 5 5 5 3 2 Class Distribution -------------------- 32% | Scavenger-Skirmisher 24% | Mutant 20% | Scavenger-Executioner 15% | Scavenger-Tank Dominant Class ---------------- Mutant | -10/Materials Scavenger-Tank | -9/Materials Scavenger-Tank | -9/Mines Scavenger-Tank | -9/Exiles Scavenger-Skirmisher | -8/Mines Scavenger-Skirmisher | -8/Materials Scavenger-Skirmisher | -8/Storage Scavenger-Skirmisher | -7/Factory Scavenger-Skirmisher | -6/Factory Scavenger-Tank | -6/Lower Caves Scavenger-Tank | -6/Lower Caves Scavenger-Executioner | -5/Factory Scavenger-Executioner | -4/Factory Mutant | -4/Upper Caves Mutant | -3/Research Mutant | -3/Armory Mutant | -2/Research Resources | -11 -10 -9 -9 -9 -8 -8 -8 -7 -6 -6 -6 -5 -4 -4 -3 -3 -2 ----------- Run | Yrd Mat Mat Min Exi Min Mat Sto Fac Fac Low Low Fac Fac Upp Res Arm Res Matter Collected 3476 | 266 131 205 57 . 142 149 184 227 . 247 . 1248 287 . 235 96 2 Remotely 144 | . 23 121 . . . . . . . . . . . . . . . Salvage Created 6437 | 82 356 536 . . 295 693 980 624 . 255 . 1650 780 . 151 35 . Parts 293 | 2 10 34 . . 8 41 45 39 . 7 . 82 18 . 6 1 . Haulers Intercepted 1 | . . . . . . . 1 . . . . . . . . . . Recyclers Shooed 13 | . 2 1 . . 3 1 1 3 . . . 1 . . . . 1 Parts Field Recycled . | . . . . . . . . . . . . . . . . . . Retrieved Matter . | . . . . . . . . . . . . . . . . . . Parts Self-Destructed 7 | . . . . . . . . . . 4 1 . . 2 . . . Prevented 8 | . . . . . . . . . . 6 . . . 2 . . . Kills | -11 -10 -9 -9 -9 -8 -8 -8 -7 -6 -6 -6 -5 -4 -4 -3 -3 -2 ------- Run | Yrd Mat Mat Min Exi Min Mat Sto Fac Fac Low Low Fac Fac Upp Res Arm Res Combat Hostiles Destroyed 77 | . 5 9 . . 3 9 15 5 . 4 . 18 8 . . 1 . Guns 48 | . 2 9 . . 3 6 15 3 . 2 . 5 3 . . . . Cannons 11 | . . . . . . . . 1 . 2 . 5 3 . . . . AOE 17 | . 3 . . . . 3 . 1 . . . 8 2 . . . . Classes Destroyed 18 | 1 2 3 . . . 1 3 2 . . . 5 . . . 1 . Worker 17 | . . 2 . . . 4 2 . . . . 6 2 . 1 . . Builder 8 | . . . . . . 3 . 2 . . . 2 1 . . . . Tunneler 1 | . . . . . . . . . . . . 1 . . . . . Hauler 1 | . . . . . . . 1 . . . . . . . . . . Recycler 21 | 1 3 1 . . 2 1 3 4 . . . 3 2 . 1 . . Mechanic 1 | . . . . . . . . . . . . 1 . . . . . Operator 2 | . . . . . . . 1 . . . . 1 . . . . . Watcher 7 | . . 1 . . . . . 2 . . . 4 . . . . . Swarmer 9 | . 3 2 . . . . 4 . . . . . . . . . . Cutter 1 | . . . . . . . . . . . . . . . . 1 . Grunt 31 | . 2 3 . . 3 8 5 . . 4 . 6 . . . . . Brawler 1 | . . . . . . . 1 . . . . . . . . . . Sentry 12 | . . 4 . . . 1 5 1 . . . 1 . . . . . Specialist 8 | . . . . . . . . 2 . . . 2 4 . . . . Hunter 7 | . . . . . . . . . . . . 5 2 . . . . Programmer 6 | . . . . . . . . 2 . . . 2 2 . . . . Heavy 1 | . . . . . . . . . . . . 1 . . . . . Behemoth 1 | . . . . . . . . . . . . 1 . . . . . Best Kill Streak 14 | 1 5 6 . . 2 14 6 4 . 4 . 4 6 . 2 1 . Combat Bots Only 6 | . 5 4 . . 2 3 6 2 . 4 . 3 2 . . 1 . Max Kills in Single Turn 4 | 1 3 2 . . 1 4 2 2 . 1 . 2 2 . 2 1 . Gunslinging 1 | . 1 1 . . . . . . . . . . . . . . . Exploded 3 | . 3 . . . . 2 . 1 . . . 2 2 . . . . Melee . | . . . . . . . . . . . . . . . . . . Uniques/NPCs Destroyed . | . . . . . . . . . . . . . . . . . . Combat | -11 -10 -9 -9 -9 -8 -8 -8 -7 -6 -6 -6 -5 -4 -4 -3 -3 -2 -------- Run | Yrd Mat Mat Min Exi Min Mat Sto Fac Fac Low Low Fac Fac Upp Res Arm Res Hostile Shots Fired 1076 | . 25 42 14 . 44 33 42 27 . 33 11 198 292 . 21 181 113 Missed 369 | . 5 15 2 . 9 14 10 10 . 1 5 43 130 . 7 84 34 Damage Taken 15254 | . 267 374 201 . 589 339 441 420 . 734 57 3383 2851 . 308 2716 2574 Core 4514 | . 54 92 31 . 190 34 81 24 . 228 11 592 1077 . 38 600 1462 Absorbed by Shields 19 | . . . . . . . . . . . . . . . . . 19 Redirected to Shielding 49 | . . . . . . . . . . . . . 34 . 15 . . Core Remaining (%) 60 | 100 78 . . . 21 . 79 96 . . 71 40 . 6 . 50 . Volleys Fired 289 | 2 25 30 3 . 21 23 37 28 1 14 . 80 21 . 2 . 2 Largest 7 | 2 2 3 3 . 3 4 4 5 5 5 . 6 7 . 2 . 1 Hottest 465 | 70 80 80 99 . 124 174 222 286 267 300 . 465 446 . 130 . 75 Shots Fired 1072 | 4 50 88 9 . 58 92 147 110 5 37 . 343 122 1 4 . 2 Gun 875 | 4 49 88 9 . 58 92 137 97 4 30 . 218 85 . 2 . 2 Cannon 183 | . . . . . . . 10 13 1 7 . 113 36 1 2 . . Launcher 14 | . 1 . . . . . . . . . . 12 1 . . . . Special . | . . . . . . . . . . . . . . . . . . Kinetic 431 | 2 26 76 6 . 42 23 36 26 2 7 . 131 51 1 2 . . Thermal 513 | 2 23 12 3 . 12 46 101 80 2 12 . 153 67 . . . . Explosive 14 | . 1 . . . . . . . . . . 12 1 . . . . Electromagnetic 114 | . . . . . 4 23 10 4 1 18 . 47 3 . 2 . 2 Robot Hit Streak 17 | 1 5 10 17 . 9 13 11 10 1 4 . 10 7 3 4 . 6 Robot Miss Streak 10 | 1 4 3 2 . 4 3 5 4 3 3 . 10 5 . . . . Penetration Max 1 | . . . . . . . . . . . . 1 1 . . . . Secondary Targets 9 | . 1 1 . . 1 1 5 . . . . . . . . . . Max Gunslinging Chain 1 | . 1 1 . . 1 1 1 . . . . . . . . . . Shots Hit Robots 583 | 2 26 55 7 . 37 55 78 58 2 21 . 174 64 1 1 . 2 Core Hits 310 | 2 15 33 1 . 16 35 38 23 . 12 . 97 32 . 2 1 3 Critical Kills 2 | . . . . . . . . . . 2 . . . . . . . Critical Parts Destroyed 2 | . . . . . . . . . . 1 . . 1 . . . . Critical Strikes 22 | . 1 . . . 1 2 1 1 . 3 . 8 5 . . . . Burn 12 | . 1 . . . 1 2 1 1 . . . 3 3 . . . . Destroy 4 | . . . . . . . . . . 3 . . 1 . . . . Blast 6 | . . . . . . . . . . . . 5 1 . . . . Melee Attacks . | . . . . . . . . . . . . . . . . . . Impact . | . . . . . . . . . . . . . . . . . . Slashing . | . . . . . . . . . . . . . . . . . . Piercing . | . . . . . . . . . . . . . . . . . . Sneak Attacks . | . . . . . . . . . . . . . . . . . . Combat Hostiles . | . . . . . . . . . . . . . . . . . . Follow-up Attacks . | . . . . . . . . . . . . . . . . . . Damage Inflicted 12981 | 28 449 519 88 . 509 1115 1167 1127 39 572 . 5153 1976 36 56 20 127 Guns 8374 | 28 367 519 88 . 483 855 1066 931 39 364 . 2437 1125 . 13 . 59 Cannons 2746 | . . . . . . . 101 130 . 150 . 1634 652 36 43 . . Explosions 1737 | . 82 . . . 26 260 . 66 . 58 . 1046 199 . . . . Melee . | . . . . . . . . . . . . . . . . . . Ramming 124 | . . . . . . . . . . . . 36 . . . 20 68 Kinetic 4405 | 28 167 420 45 . 342 188 279 262 23 150 . 1719 703 36 43 . . Thermal 6090 | . 200 99 43 . 98 595 744 854 16 221 . 2104 1116 . . . . Explosive 1008 | . 82 . . . . . . . . . . 789 137 . . . . Electromagnetic 1354 | . . . . . 69 332 144 11 . 201 . 505 20 . 13 . 59 Impact . | . . . . . . . . . . . . . . . . . . Slashing . | . . . . . . . . . . . . . . . . . . Piercing . | . . . . . . . . . . . . . . . . . . Highest Corruption 10 | . . . 3 3 3 . . 4 . . . 3 5 5 . 10 2 Average Corruption 2 | . . . 3 3 3 . . 2 . . . 2 2 5 . 3 2 Corruption Purged . | . . . . . . . . . . . . . . . . . . Corruption Blocked . | . . . . . . . . . . . . . . . . . . Effects 46 | . . . 1 4 5 . . 6 . . . 11 4 3 . 11 1 Message Errors 13 | . . . . 1 3 . . 2 . . . 3 2 . . 2 . Matter Fused 4 | . . . . 1 . . . . . . . 1 . . . 2 . Heat Flow Errors 8 | . . . 1 2 . . . . . . . . 2 1 . 2 . Energy Discharges 3 | . . . . . . . . 1 . . . 1 . . . 1 . Parts Rejected 1 | . . . . . . . . . . . . 1 . . . . . Parts Fused 1 | . . . . . . . . 1 . . . . . . . . . Data Loss (minor) 2 | . . . . . . . . . . . . 1 . . . 1 . Data Loss (major) 7 | . . . . . . . . 2 . . . 2 . 1 . 2 . Misfires 3 | . . . . . . . . . . . . 2 . 1 . . . Alerts 1 | . . . . . . . . . . . . . . . . . 1 Misdirections 1 | . . . . . . . . . . . . . . . . 1 . Weapon Failures 2 | . . . . . 2 . . . . . . . . . . . . Overload Shots . | . . . . . . . . . . . . . . . . . . Overflow Damage 249 | . . . . . . . 18 . . . . 87 143 . . 1 . Projectiles 170 | . . . . . . . 18 . . . . 78 74 . . . . Explosions 78 | . . . . . . . . . . . . 9 69 . . . . Melee 1 | . . . . . . . . . . . . . . . . 1 . Knockbacks 17 | . . . . . . . . 1 . 2 . 7 6 1 . . . Impact 1 | . . . . . . . . . . . . 1 . . . . . Kinetic 16 | . . . . . . . . 1 . 2 . 6 6 1 . . . Secondary . | . . . . . . . . . . . . . . . . . . Self-Inflicted Damage 746 | . . . . . 20 38 . 99 . . . 335 213 . . 9 32 Shots 13 | . . . . . 1 1 . 1 . . . 7 3 . . . . Rammed 40 | . . . . . . . . . . . . 13 . . . 7 20 Targets Rammed 40 | . . . . . . . . . . . . 13 . . . 7 20 Kicked . | . . . . . . . . . . . . . . . . . . Crushed . | . . . . . . . . . . . . . . . . . . Highest Temperature 1019 | 9 222 78 78 167 249 51 171 344 162 1019 . 425 188 147 7 218 . Average Temperature 112 | 6 94 26 16 86 140 18 62 110 88 565 . 128 88 88 5 103 . Received Heat Transfer 3264 | . 150 186 30 . 333 189 252 12 . 276 9 1353 276 . 48 123 27 Effects 32 | . . . . . . . . . . 23 . 9 . . . . . Shutdowns 9 | . . . . . . . . . . 8 . 1 . . . . . Energy Bleed 4 | . . . . . . . . . . 2 . 2 . . . . . Interference 3 | . . . . . . . . . . 3 . . . . . . . Matter Decay 2 | . . . . . . . . . . 1 . 1 . . . . . Short Circuit 3 | . . . . . . . . . . 2 . 1 . . . . . Damage (minor) 2 | . . . . . . . . . . 1 . 1 . . . . . Damage (major) 8 | . . . . . . . . . . 5 . 3 . . . . . Damage (core) 1 | . . . . . . . . . . 1 . . . . . . . Siege Activations . | . . . . . . . . . . . . . . . . . . Robots Corrupted 1 | . . . . . . . . . . . . . . . . 1 . Combat Hostiles 1 | . . . . . . . . . . . . . . . . 1 . Parts Fried 2 | . . . . . . 1 . . . . . . . . . 1 . Impact Corruptions 1 | . . . . . . . . . . . . . . . . 1 . Robots Melted . | . . . . . . . . . . . . . . . . . . Combat Hostiles . | . . . . . . . . . . . . . . . . . . Parts Melted 23 | . 2 . . . . 1 4 4 . . . 5 7 . . . . Heat Transferred 12748 | . 666 225 111 . 309 1173 1998 1743 37 411 . 3988 2087 . . . . Parts Sabotaged . | . . . . . . . . . . . . . . . . . . Parts Stolen 2 | . . . . . . . . . . 2 . . . . . . . Parts Stripped . | . . . . . . . . . . . . . . . . . . Power Chain Reactions 8 | . . . . . 1 3 . 1 . 1 . 2 . . . . . Alert | -11 -10 -9 -9 -9 -8 -8 -8 -7 -6 -6 -6 -5 -4 -4 -3 -3 -2 ------- Run | Yrd Mat Mat Min Exi Min Mat Sto Fac Fac Low Low Fac Fac Upp Res Arm Res Peak Influence 974 | 5 186 395 75 . 40 318 479 268 128 . . 440 480 . 336 974 461 Initial 411 | . 3 78 75 . . 11 133 206 123 . . 28 205 . 146 73 411 Average 212 | 1 120 164 65 . 16 146 304 190 109 . . 206 277 . 195 316 426 Maximum Alert Level 3 | . . 1 . . . 1 2 1 . . . 2 2 . 1 3 2 Low Security (%) 48 | 100 100 66 100 . 100 61 9 41 100 . . 50 1 . 67 49 . Level 1 42 | . . 33 . . . 38 75 58 . . . 42 97 . 32 22 . Level 2 8 | . . . . . . . 14 . . . . 6 . . . 17 100 Level 3 . | . . . . . . . . . . . . . . . . 10 . Level 4 . | . . . . . . . . . . . . . . . . . . Level 5 . | . . . . . . . . . . . . . . . . . . High Security . | . . . . . . . . . . . . . . . . . . Max Security . | . . . . . . . . . . . . . . . . . . Squads Dispatched 26 | . . . . . . . 2 4 . . . 7 4 . 1 5 3 Investigation 2 | . . . . . . . 1 . . . . . . . 1 . . Extermination 6 | . . . . . . . . 1 . . . 1 2 . . 1 1 Reinforcement 15 | . . . . . . . . 2 . . . 5 2 . . 4 2 Assault 1 | . . . . . . . . . . . . 1 . . . . . Garrison 2 | . . . . . . . 1 1 . . . . . . . . . Intercept . | . . . . . . . . . . . . . . . . . . Searches Triggered 1 | . . . . . . . . . . . . . . . . 1 . Construction Impeded 1 | . . . . . . . . . . . . 1 . . . . . Haulers Reinforced . | . . . . . . . . . . . . . . . . . . Active Scanning Responses . | . . . . . . . . . . . . . . . . . . Cargo Convoy Interrupts . | . . . . . . . . . . . . . . . . . . Stealth | -11 -10 -9 -9 -9 -8 -8 -8 -7 -6 -6 -6 -5 -4 -4 -3 -3 -2 --------- Run | Yrd Mat Mat Min Exi Min Mat Sto Fac Fac Low Low Fac Fac Upp Res Arm Res Distress Signals 19 | . . 2 . . . 1 3 . . . . 4 2 . 1 6 . Communications Jammed . | . . . . . . . . . . . . . . . . . . Distress Signals . | . . . . . . . . . . . . . . . . . . Times Spotted 246 | . 9 13 11 . 3 15 19 8 . 6 5 37 19 . 10 77 14 Peak Tracking Total 26 | . 5 7 17 . 3 3 5 2 . 4 5 6 6 . 8 26 10 Tactical Retreats 28 | . . 1 . . . 1 1 . . . 1 3 3 . 1 15 2 Traps | -11 -10 -9 -9 -9 -8 -8 -8 -7 -6 -6 -6 -5 -4 -4 -3 -3 -2 ------- Run | Yrd Mat Mat Min Exi Min Mat Sto Fac Fac Low Low Fac Fac Upp Res Arm Res Traps Triggered 6 | . . . . . . . . 1 1 . . 2 . . . 2 . Indirectly . | . . . . . . . . . . . . . . . . . . Trap Hack Attempts . | . . . . . . . . . . . . . . . . . . Triggered . | . . . . . . . . . . . . . . . . . . Disarmed . | . . . . . . . . . . . . . . . . . . Reprogrammed . | . . . . . . . . . . . . . . . . . . Reused . | . . . . . . . . . . . . . . . . . . Traps Extracted . | . . . . . . . . . . . . . . . . . . Installed . | . . . . . . . . . . . . . . . . . . Triggered 3 | . . . . . . . . . . 1 . . . 2 . . . Machines | -11 -10 -9 -9 -9 -8 -8 -8 -7 -6 -6 -6 -5 -4 -4 -3 -3 -2 ---------- Run | Yrd Mat Mat Min Exi Min Mat Sto Fac Fac Low Low Fac Fac Upp Res Arm Res Machines Disabled 23 | . 1 . . . . 1 1 8 . . . 8 3 . 1 . . Max in Single Turn 5 | . 1 . . . . 1 1 5 . . . 2 1 . 1 . . Garrison Access 1 | . . . . . . . . . . . . 1 . . . . . Machines Repaired . | . . . . . . . . . . . . . . . . . . Machines Dismantled . | . . . . . . . . . . . . . . . . . . Machines Sabotaged . | . . . . . . . . . . . . . . . . . . Overloaded Fab Kills . | . . . . . . . . . . . . . . . . . . Hacking | -11 -10 -9 -9 -9 -8 -8 -8 -7 -6 -6 -6 -5 -4 -4 -3 -3 -2 --------- Run | Yrd Mat Mat Min Exi Min Mat Sto Fac Fac Low Low Fac Fac Upp Res Arm Res Machines Accessed 16 | . 2 . . 1 . . 3 2 1 . . 2 . . 3 1 1 Terminals 9 | . 2 . . . . . 3 1 1 . . 1 . . 1 . . Fabricators 4 | . . . . . . . . 1 . . . . . . 1 1 1 Repair Stations 1 | . . . . . . . . . . . . . . . 1 . . Recycling Units . | . . . . . . . . . . . . . . . . . . Scanalyzers . | . . . . . . . . . . . . . . . . . . Garrison Access 1 | . . . . . . . . . . . . 1 . . . . . Total Hacks 27 | . 3 . . 1 . . 8 3 1 . . 4 . . 4 1 2 Successful 15 | . 3 . . 1 . . 5 3 1 . . 2 . . . . . Failed 12 | . . . . . . . 3 . . . . 2 . . 4 1 2 Catastrophic 3 | . . . . . . . 1 . . . . . . . 2 . . Database Lockouts . | . . . . . . . . . . . . . . . . . . Manual 2 | . . . . 1 . . 1 . . . . . . . . . . Terminals 18 | . 3 . . . . . 8 2 1 . . 3 . . 1 . . Fabricators 5 | . . . . . . . . 1 . . . . . . 1 1 2 Repair Stations 2 | . . . . . . . . . . . . . . . 2 . . Recycling Units . | . . . . . . . . . . . . . . . . . . Scanalyzers . | . . . . . . . . . . . . . . . . . . Garrison Access 1 | . . . . . . . . . . . . 1 . . . . . Terminal Hacks 13 | . 3 . . 1 . . 5 2 1 . . 1 . . . . . Locate Traps 5 | . 2 . . . . . 2 1 . . . . . . . . . Zone Layout 7 | . 1 . . . . . 3 1 1 . . 1 . . . . . Derelict Proto ID Bank 1 | . . . . 1 . . . . . . . . . . . . . Fabricator Hacks 1 | . . . . . . . . 1 . . . . . . . . . Build 1 | . . . . . . . . 1 . . . . . . . . . Repair Station Hacks . | . . . . . . . . . . . . . . . . . . Recycling Unit Hacks . | . . . . . . . . . . . . . . . . . . Scanalyzer . | . . . . . . . . . . . . . . . . . . Garrison Access Hacks 1 | . . . . . . . . . . . . 1 . . . . . Seal Access 1 | . . . . . . . . . . . . 1 . . . . . Unauthorized Hacks . | . . . . . . . . . . . . . . . . . . Terminals . | . . . . . . . . . . . . . . . . . . Fabricators . | . . . . . . . . . . . . . . . . . . Repair Stations . | . . . . . . . . . . . . . . . . . . Recycling Units . | . . . . . . . . . . . . . . . . . . Scanalyzers . | . . . . . . . . . . . . . . . . . . Garrison Access . | . . . . . . . . . . . . . . . . . . Data Cores Recovered 2 | . . . . . . . 1 . . . . 1 . . . . . Used . | . . . . . . . . . . . . . . . . . . Hacking Detections 12 | . 1 . . . . . 3 2 . . . 1 . . 3 1 1 Full Trace Events 2 | . . . . . . . 1 . . . . . . . 1 . . Feedback Events . | . . . . . . . . . . . . . . . . . . Feedback Blocked . | . . . . . . . . . . . . . . . . . . Robot Schematics Acquired . | . . . . . . . . . . . . . . . . . . Robots Built 4 | . . . . . . . . 4 . . . . . . . . . Authchips . | . . . . . . . . . . . . . . . . . . Time 81 | . . . . . . . . 81 . . . . . . . . . Total Robot Build Rating 4 | . . . . . . . . 4 . . . . . . . . . Part Schematics Acquired . | . . . . . . . . . . . . . . . . . . Parts Built . | . . . . . . . . . . . . . . . . . . Authchips . | . . . . . . . . . . . . . . . . . . Time . | . . . . . . . . . . . . . . . . . . Total Part Build Rating . | . . . . . . . . . . . . . . . . . . Parts Repaired . | . . . . . . . . . . . . . . . . . . Time . | . . . . . . . . . . . . . . . . . . Parts Recycled . | . . . . . . . . . . . . . . . . . . Recycled Matter . | . . . . . . . . . . . . . . . . . . Retrieved Matter . | . . . . . . . . . . . . . . . . . . Retrieved Components . | . . . . . . . . . . . . . . . . . . Parts Scanalyzed . | . . . . . . . . . . . . . . . . . . Part Schematics Acquired . | . . . . . . . . . . . . . . . . . . Parts Damaged . | . . . . . . . . . . . . . . . . . . Bothacking | -11 -10 -9 -9 -9 -8 -8 -8 -7 -6 -6 -6 -5 -4 -4 -3 -3 -2 ------------ Run | Yrd Mat Mat Min Exi Min Mat Sto Fac Fac Low Low Fac Fac Upp Res Arm Res Used RIF Installer . | . . . . . . . . . . . . . . . . . . Robots Hacked . | . . . . . . . . . . . . . . . . . . Non-combat . | . . . . . . . . . . . . . . . . . . Combat . | . . . . . . . . . . . . . . . . . . Robot Hacks Applied . | . . . . . . . . . . . . . . . . . . Relay Couplers Released . | . . . . . . . . . . . . . . . . . . Fabnet Peak Effective % . | . . . . . . . . . . . . . . . . . . Robots Rewired 5 | . . . . . . . . . . . . . . . . 5 . Allies Hacked . | . . . . . . . . . . . . . . . . . . Hacks Repelled . | . . . . . . . . . . . . . . . . . . Allies | -11 -10 -9 -9 -9 -8 -8 -8 -7 -6 -6 -6 -5 -4 -4 -3 -3 -2 -------- Run | Yrd Mat Mat Min Exi Min Mat Sto Fac Fac Low Low Fac Fac Upp Res Arm Res Total Allies 10 | . . . . . . . . 4 . . . . . 1 . 5 . Largest Group 4 | . . . . . . . . 4 4 . . . . 1 . 3 . Highest-Rated Group 168 | . . . . . . . . 24 24 . . . . 106 . 168 . Highest-Rated Ally 106 | . . . . . . . . 6 6 . . . . 106 . 56 . Total Orders . | . . . . . . . . . . . . . . . . . . Ally Attacks 26 | . . . . . . . . . . . . . . . . 26 . Total Damage 987 | . . . . . . . . . . . . . . . . 987 . Kills 6 | . . . . . . . . . . . . . . . . 6 . Allies Corrupted 1 | . . . . . . . . . . . . . . . . 1 . Allies Melted . | . . . . . . . . . . . . . . . . . . Intel | -11 -10 -9 -9 -9 -8 -8 -8 -7 -6 -6 -6 -5 -4 -4 -3 -3 -2 ------- Run | Yrd Mat Mat Min Exi Min Mat Sto Fac Fac Low Low Fac Fac Upp Res Arm Res Robot Analysis Total . | . . . . . . . . . . . . . . . . . . Derelict Logs Recovered 2 | . . . . . . . . . . 1 . . . 1 . . . Drone Launches 6 | . . . . . . . . 1 . . . . 5 . . . . Drone Recoveries 2 | . . . . . . . . . . . . . 2 . . . . Exploration | -11 -10 -9 -9 -9 -8 -8 -8 -7 -6 -6 -6 -5 -4 -4 -3 -3 -2 ------------- Run | Yrd Mat Mat Min Exi Min Mat Sto Fac Fac Low Low Fac Fac Upp Res Arm Res Turns Passed 8581 | 72 301 426 106 234 229 377 645 1148 250 802 61 1807 644 77 578 531 293 Spaces Moved 6452 | 58 192 231 75 212 117 170 309 620 145 496 26 921 585 119 785 981 410 Core 241 | 14 . . . . . . . . . . . 12 96 . . 40 79 Treads . | . . . . . . . . . . . . . . . . . . Legs 112 | . . . . . . . . . . . . 112 . . . . . Wheels 3644 | 44 192 231 75 212 117 170 309 620 145 496 26 797 209 . 1 . . Hover . | . . . . . . . . . . . . . . . . . . Flight 2455 | . . . . . . . . . . . . . 280 119 784 941 331 Fastest Speed 32 | 50 100 105 110 110 110 115 120 120 130 145 145 50 37 37 37 32 39 Average Speed 91 | 87 106 114 110 110 112 127 128 131 143 145 145 133 67 37 39 37 42 Slowest Speed 540 | 100 115 115 110 110 115 130 170 145 145 145 145 540 150 37 110 50 100 Overloaded Moves . | . . . . . . . . . . . . . . . . . . Propulsion Burnouts . | . . . . . . . . . . . . . . . . . . Robots Hopped 43 | . . . . . . . . . . . . . 8 . 11 20 4 Cave-ins Triggered . | . . . . . . . . . . . . . . . . . . Exploration Rate (%) 27 | 4 42 20 23 60 28 16 43 24 4 68 5 26 18 24 19 62 17 Regions Visited 17 Branch Regions 8 Pre-discovered Areas 1 | . . . 1 . . . . . . . . . . . . . . Known Exits Taken . | . . . . . . . . . . . . . . . . . . Unknown Exits Taken 17 | 1 1 1 1 1 1 1 1 1 1 1 1 1 1 1 1 1 . Scrap Searched 5 | . . . . . . . . . . 5 . . . . . . . Spaces Dug 5 | . . . . . . . . . . . . 5 . . . . . Terrain Destroyed 265 | . . . . . 1 8 2 20 . 8 . 150 76 . . . . Melee . | . . . . . . . . . . . . . . . . . . Projectile 55 | . . . . . . . 2 3 . 3 . 39 8 . . . . AOE 210 | . . . . . 1 8 . 17 . 5 . 111 68 . . . . Terrain Rammed . | . . . . . . . . . . . . . . . . . . Walls Destroyed . | . . . . . . . . . . . . . . . . . . Machines Disabled . | . . . . . . . . . . . . . . . . . . Actions | -11 -10 -9 -9 -9 -8 -8 -8 -7 -6 -6 -6 -5 -4 -4 -3 -3 -2 --------- Run | Yrd Mat Mat Min Exi Min Mat Sto Fac Fac Low Low Fac Fac Upp Res Arm Res Total 8475 | 75 239 343 92 213 171 278 470 904 184 560 49 1287 766 151 1038 1129 526 Wait 1230 | . 5 32 13 . 21 49 98 210 35 37 24 151 127 33 233 85 77 Move 6354 | 57 191 230 74 211 116 169 308 619 144 495 25 920 569 118 762 944 402 Hop 38 | . . . . . . . . . . . . . 7 . 11 16 4 Pick Up 173 | 10 7 24 1 1 4 14 10 13 1 1 . 57 13 . 2 7 8 Fast Attach 35 | . . 2 . . . 1 1 1 2 1 . 4 7 . 10 5 1 Attach 101 | 6 3 4 1 . 5 2 2 4 . 7 . 38 13 . 1 7 8 Detach 6 | . . . . . . . . . . . . 1 . . 2 2 1 Swap 50 | . 5 8 . . 2 6 3 10 . 1 . 15 . . . . . Drop 110 | . 3 13 . 1 2 14 11 19 1 4 . 7 9 . 15 8 3 Fire 289 | 2 25 30 3 . 21 23 37 28 1 14 . 80 21 . 2 . 2 Melee . | . . . . . . . . . . . . . . . . . . Ram 40 | . . . . . . . . . . . . 13 . . . 7 20 Kick . | . . . . . . . . . . . . . . . . . . Crush . | . . . . . . . . . . . . . . . . . . Escape Stasis 18 | . . . . . . . . . . . . . . . . 18 . Rewire 31 | . . . . . . . . . . . . 1 . . . 30 . Trap . | . . . . . . . . . . . . . . . . . . Miscellaneous . | . . . . . . . . . . . . . . . . . . Route ------- -11/Scrapyard -10/Materials -9/Materials -9/Mines (discovered 2 exits: [*Mat] / *Exi) -9/Exiles -8/Mines -8/Materials -8/Storage -7/Factory -6/Factory -6/Lower Caves -6/Lower Caves -5/Factory -4/Factory -4/Upper Caves -3/Research -3/Armory -2/Research History --------- Turn | Location | Event 34 | -11/Scrapyard | Discovered new exit (range 15) 73 | -11/Scrapyard | Entered Materials 317 | -10/Materials | Build established: Mutant 335 | -10/Materials | Discovered new exit (range 10) 374 | -10/Materials | Entered another Materials area 374 | -9/Materials | Evolved 2 slots: Utility x1, Weapon x1 722 | -9/Materials | Discovered new exit (range 15) 800 | -9/Materials | Entered Mines 801 | -9/Mines | Assembled infested the area 820 | -9/Mines | Discovered new exit (range 14) 821 | -9/Mines | Learned location of Storage (-8) 838 | -9/Mines | Met 8R-AWN 843 | -9/Mines | Build established: Scavenger-Tank 902 | -9/Mines | Discovered new exit (range 5) 906 | -9/Mines | Entered Exiles 934 | -9/Exiles | Welcomed by 8R-AWN 953 | -9/Exiles | Met EX-HEX 983 | -9/Exiles | Met EX-BIN 997 | -9/Exiles | Aligned with FarCom system 998 | -9/Exiles | Given EX-Vault access code 1023 | -9/Exiles | Opened EX-Vault 1030 | -9/Exiles | Found Supersonic Drone Bay 1054 | -9/Exiles | Warned to stay clear of 0b10 Research branches 1087 | -9/Exiles | Met EX-DEC 1126 | -9/Exiles | Discovered new exit (range 14) 1140 | -9/Exiles | Left Exiles lab with Supersonic Drone Bay 1140 | -9/Exiles | Entered Mines 1204 | -8/Mines | Core integrity fell below 50% 1279 | -8/Mines | Lost 5 parts (2n1u2w) 1349 | -8/Mines | Discovered new exit (range 9) 1369 | -8/Mines | Entered Materials 1369 | -8/Materials | Evolved 2 slots: Utility x1, Weapon x1 1428 | -8/Materials | Build established: Scavenger-Skirmisher 1723 | -8/Materials | Discovered new exit (range 6) 1746 | -8/Materials | Entered Storage 2352 | -8/Storage | Garrison activated, responded to threat 2378 | -8/Storage | Discovered new exit (range 12) 2391 | -8/Storage | Entered Factory 2391 | -7/Factory | Evolved 2 slots: Utility x1, Weapon x1 2937 | -7/Factory | Garrison activated, responded to threat 3428 | -7/Factory | Discovered new exit (range 14) 3519 | -7/Factory | Fabricated K-01 Serf (x4) 3539 | -7/Factory | Entered another Factory area 3539 | -6/Factory | Accompanied by 4 allies 3539 | -6/Factory | Evolved 2 slots: Power x1, Propulsion x1 3736 | -6/Factory | Lost 4 allies 3742 | -6/Factory | Discovered new exit (range 13) 3789 | -6/Factory | Entered Lower Caves 4085 | -6/Lower Caves | Build established: Scavenger-Tank 4306 | -6/Lower Caves | Lost 3 parts (1u2w) 4457 | -6/Lower Caves | Learned Factory interactive machine intel 4564 | -6/Lower Caves | Discovered new exit (range 7) 4591 | -6/Lower Caves | Entered another Lower Caves area 4602 | -6/Lower Caves | Attracted the attention of an 0b10 checkpoint 4613 | -6/Lower Caves | Encountered a Warlord checkpoint 4615 | -6/Lower Caves | Discovered new exit (range 10) 4652 | -6/Lower Caves | Entered Factory 4652 | -5/Factory | Evolved 2 slots: Propulsion x1, Weapon x1 4653 | -5/Factory | Loaded intel: 51 interactive machine locations 4989 | -5/Factory | Build established: Scavenger-Executioner 5215 | -5/Factory | Spotted B-75 Beast 5295 | -5/Factory | Destroyed B-75 Beast 5324 | -5/Factory | Lost 10 parts (2p1n2u5w) 5540 | -5/Factory | Core integrity fell below 50% 5548 | -5/Factory | Lost 6 parts (1p1n4w) 6433 | -5/Factory | Discovered new exit (range 13) 6452 | -5/Factory | First assault squad dispatched 6459 | -5/Factory | Entered another Factory area 6459 | -4/Factory | Evolved 2 slots: Utility x1, Weapon x1 6807 | -4/Factory | Core integrity fell below 50% 6815 | -4/Factory | Core integrity fell below 20% 6831 | -4/Factory | Lost 13 parts (1p2n3u7w) 6986 | -4/Factory | Lost 3 allies 7098 | -4/Factory | Discovered new exit (range 15) 7103 | -4/Factory | Entered Upper Caves 7113 | -4/Upper Caves | Build established: Mutant 7141 | -4/Upper Caves | Learned 8 Research zone layouts 7175 | -4/Upper Caves | 12-ASH showed up to help 7177 | -4/Upper Caves | 12-ASH revealed a hidden path 7180 | -4/Upper Caves | Entered Research 7180 | -3/Research | Evolved 2 slots: Propulsion x2 7445 | -3/Research | Found Prototype Processor 7445 | -3/Research | Identified Exp. Target Analyzer 7543 | -3/Research | Found Prototype Protection 7543 | -3/Research | Identified Centrium Heavy Armor Plating 7748 | -3/Research | Discovered new exit (range 15) 7758 | -3/Research | Entered Armory 7775 | -3/Armory | Found Centrium Heavy Armor Plating 8130 | -3/Armory | Spotted B-86 Titan 8134 | -3/Armory | Found Gamma Bomb Array 8230 | -3/Armory | Lost 5 parts (4n1u) 8248 | -3/Armory | System corruption reached 10% 8280 | -3/Armory | Discovered new exit (range 3) 8287 | -3/Armory | Search patrols dispatched 8289 | -3/Armory | Entered Research 8289 | -2/Research | Evolved 2 slots: Propulsion x1, Utility x1 8304 | -2/Research | Lost 4 allies 8497 | -2/Research | Core integrity fell below 50% 8525 | -2/Research | Core integrity fell below 20% 8535 | -2/Research | Found Hvy. Insulated Plating 8538 | -2/Research | Found Hvy. Insulated Plating 8540 | -2/Research | Found Hvy. Insulated Plating 8541 | -2/Research | Found Hvy. Insulated Plating 8582 | -2/Research | Destroyed by Y-72 Warden with Railgun Last Messages --------------- 08550_ Critical hit (Destroy). 08552_ Slug penetrates Wall. 08553_ Penetrated by Slug. 08556_ Slug penetrates Wall. 08558_ Penetrated by Slug. 08558_ Hvy. Insulated Plating destroyed. 08558_ Penetrated by Slug. 08559_ K-01 Serf destroyed. 08559_ Penetrated by Slug. 08561_ Slug penetrates Wall. 08563_ Dropped Hvy. Insulated Plating. 08564_ Acquired Lgt. Ion Engine. 08564_ C-57 Dissector suffers critical hit (Destroy). 08567_ Penetrated by Slug. 08569_ The unstable cave ceiling collapses. 08572_ Penetrated by Slug. 08572_ Lgt. Ion Engine destroyed. 08577_ Slug penetrates Wall. 08579_ Hvy. Insulated Plating destroyed. 08579_ Penetrated by Slug. Map ----- +----------------------------------------------------+ | | | | | | | | | ?????????????????????????????????????????????????? | | ?????????????????????????????????????????????????? | | ?????????????????????????????????????????????????? | | ?????????????????????????????????????????????????? | | ?????????????????????????????????????????????????? | | ?????????????????????????????????????????????????? | | ?????????????????????????????????????????????????? | | ?????????????????????????????????????????????????? | | ?????????????????????????????????????????????????? | | ?????????????????????????????????????????????????? | | ?????????????????????????????????????????????????? | | ?????????????????????????????????????????????????? | | ?????????????????????????????????????????????????? | | ?????????????????????????????????????????????????? | | ?????????????????????????????????????????????????? | | ?????????????????????????????????????????????????? | | ?????????????????????????????????????????????????? | | ??????????????????????######?????????????????????? | | ??????????????????????# #?????????????????????? | | ??????????????????????+ #?????????????????????? | | ??????????????????????# Y #?????????????????????? | | ??????????????????????# @ #?????????????????????? | | ??????????????????????## ##?????????????????????? | | ???????????????????????# #??????????????????????? | | ???????????????????????# #??????????????????????? | | ???????????????????????# #??????????????????????? | | ???????????????######### #############+?????????? | | ???????????????# ! ????????? | | ???????????????# ????????? | | ???????????????# c ????????? | | ???????????????+ """" ????????? | | ???????????????# """" ###########+##????????? | | ???????????????# """" #? #????????? | | ????????????#### """" #? #????????? | | ?????????? # #????????? | | ?????????? ! c# +????????? | | ?????????? /w #????????? | | ??????????? # [ #????????? | | ???????????############ # = #????????? | | ??????????????????????# #? #????????? | | ??????????????????????# #? #????????? | | ??????????????????????+ #?? ! #????????? | | ??????????????????????# #?? /????????? | | ??????????????????????# #??? #????????? | | ??????????????????????# #???#########?????????? | | ????????????????"?????# #?????????????????????? | +----------------------------------------------------+ Best States ------------- Heat Dissipation 100 Coolant Potential 100 Energy Generation 32 Energy Capacity 510 Matter Stores 300 Matter Capacity 300 Sight Range 16 Robot Scan Range 16 Terrain Scan Density 10 ECM Strength 2 Base Temperature (-) 200 Armor Coverage 1200 Resistance: EM 30 Utility Shielding 66 Weapon Cycling 15 Phase Shifting 5 Evasion (%) 63 Targeting Accuracy 5 Recoil Reduction 1 Particle Charging 15 Item Schematics ----------------- None Robot Schematics ------------------ None Fabricated ------------ K-01 Serf | x4 | -7/Factory | Preloaded Alien Tech Used ----------------- None Achievements -------------- Hunted Challenges ------------ None Game ------ Seed ColdSalvageSuit Manual? 0 Play Time 02:23:38 Cumulative 87.1 hours Start 2025.04.30 @ 19:09:50 End 2025.04.30 @ 21:37:31 Sessions 1 Manual Loads 0 Difficulty Rogue Special Mode None Game No. 88 Rogue 88 Adventurer 0 Explorer 0 Win Type - Total 0 Types 0/0/0/0/0/0/0/0/0 Lore% 7 Gallery% 41 Achievement% 34 Wizard Run 0 Options --------- Layout 0 ASCII 0 Keyboard 0 Movement Mouse Keybinds 0 Fullscreen 2 Font 12/Smallcaps Map View 41x27 Zoom Use 98% Tactical HUD 1 Map Filters NONE Filters NONE Steam 1 RUN: 43238311-0aca-45c6-af1f-ce8a9d9d3c63